﻿Department family,Entity,Date,Expense type,Expense area,Supplier,Transaction number,Amount,VAT registration number
Dept of Health,MHRA,05/02/2024,Assets Under Construction - Clearing Account,Digital and Technology,Accenture (UK) Limited,3003645871,"334,790.76",788629066
Dept of Health,MHRA,05/02/2024,Assets Under Construction - Clearing Account,Digital and Technology,Accenture (UK) Limited,3003646349,"118,684.27",788629066
Dept of Health,MHRA,05/02/2024,Application Services and Maintenance,Digital and Technology,Accenture (UK) Limited,3003646360,"30,035.28",788629066
Dept of Health,MHRA,05/02/2024,Assets Under Construction - Clearing Account,Digital and Technology,Accenture (UK) Limited,3003646534,"219,835.02",788629066
Dept of Health,MHRA,05/02/2024,IT Security,Digital and Technology,NCC Group Security Services Ltd,00114225,"32,400.00",732334556
Dept of Health,MHRA,05/02/2024,Contracted Out Services Miscellaneous,Digital and Technology,Veracity OSI UK Limited,INV-00001846,"57,702.00",178448953
Dept of Health,MHRA,05/02/2024,Assets Under Construction - Clearing Account,Digital and Technology,Veracity OSI UK Limited,INV-00001850,"38,040.00",178448953
Dept of Health,MHRA,12/02/2024,Assets Under Construction - Clearing Account,Digital and Technology,Accenture (UK) Limited,3003646747,"318,108.23",788629066
Dept of Health,MHRA,12/02/2024,Assets Under Construction - Plant & Equipment,"Scientific, Research and Innovation",Agilent Technologies LDA UK Ltd,3005178711,"56,560.34",180567396
Dept of Health,MHRA,12/02/2024,Infrastructure Services and Maintenance,Digital and Technology,Bytes Software Services Limited,1234261,"28,809.84",823818226
Dept of Health,MHRA,12/02/2024,Assets Under Construction - Land & Buildings,Corporate,Classic gardens ltd,3491,"32,818.80",265999726
Dept of Health,MHRA,12/02/2024,Internal Audit,Enablement,Government Internal Audit Agency,46181,"56,053.50",888827544
Dept of Health,MHRA,12/02/2024,Professional Memberships,Partnerships,International Council for Harmonisation of Technical Requirements for Pharmaceuticals for Human Use,ICHINV/2024_26,"41,924.70",
Dept of Health,MHRA,12/02/2024,MHRA-administered Seminar Costs,Enablement,Leonardo Hotels,25222348,"36,075.82",287154183
Dept of Health,MHRA,12/02/2024,Subcontracted Laboratory Services,Healthcare Quality and Access,LGC Ltd,51151329,"341,055.59",674056721
Dept of Health,MHRA,12/02/2024,Assets Under Construction - Other Costs,Corporate,Parker Air Conditioning Ltd,INV26508,"571,358.96",506700965
Dept of Health,MHRA,12/02/2024,Assets Under Construction - Other Costs,Corporate,Parker Air Conditioning Ltd,INV26510,"105,873.00",506700965
Dept of Health,MHRA,12/02/2024,Application Services and Maintenance,Digital and Technology,Trustmarque Solutions Limited,2377183,"969,197.11",394593601
Dept of Health,MHRA,14/02/2024,Assets Under Construction - Clearing Account,Healthcare Quality and Access,LGC Ltd,51152214,"53,289.00",674056721
Dept of Health,MHRA,14/02/2024,Assets Under Construction - Clearing Account,Healthcare Quality and Access,LGC Ltd,51152215,"26,086.31",674056721
Dept of Health,MHRA,14/02/2024,Library & Periodical Subscriptions,Enablement,LM Prenax UK,11006901,"123,385.37",356947157
Dept of Health,MHRA,19/02/2024,Infrastructure Services and Maintenance,Digital and Technology,CAE Technology Services Limited,295402,"129,343.99",836637989
Dept of Health,MHRA,19/02/2024,Security,Corporate,CIS Security Limited,0000065885,"61,036.62",206193092
Dept of Health,MHRA,19/02/2024,IT Security,Digital and Technology,Clear Graphics,INV-7815,"48,651.60",602881647
Dept of Health,MHRA,19/02/2024,Assets Under Construction - Clearing Account,Digital and Technology,Cloud Kubed Ltd,INV-0185,"321,624.00",383555470
Dept of Health,MHRA,19/02/2024,IT Consultancy,Safety and Surveillance,Cloud Kubed Ltd,INV-0186,"46,071.72",383555470
Dept of Health,MHRA,19/02/2024,Contracted Out Services Miscellaneous,Digital and Technology,Cloud Kubed Ltd,INV-0187,"195,600.00",383555470
Dept of Health,MHRA,19/02/2024,Application Services and Maintenance,Safety and Surveillance,Cyber-Duck Ltd,10966,"104,354.69",798776533
Dept of Health,MHRA,19/02/2024,Archiving and Storage,Digital and Technology,Iron Mountain UK Limited,0804625,"149,985.00",607937516
Dept of Health,MHRA,19/02/2024,Infrastructure Services and Maintenance,Safety and Surveillance,Trustmarque Solutions Limited,2377908,"300,966.92",394593601
Dept of Health,MHRA,19/02/2024,Infrastructure Services and Maintenance,Digital and Technology,Trustmarque Solutions Limited,2377915,"172,631.89",394593601
Dept of Health,MHRA,19/02/2024,Infrastructure Services and Maintenance,Safety and Surveillance,Trustmarque Solutions Limited,2377916,"290,979.06",394593601
Dept of Health,MHRA,19/02/2024,Software & Licences,Digital and Technology,Trustmarque Solutions Limited,2375904A,"173,223.07",394593601
Dept of Health,MHRA,21/02/2024,Assets Under Construction - Clearing Account,Digital and Technology,Accenture (UK) Limited,3003648713,"298,257.60",788629066
Dept of Health,MHRA,21/02/2024,Assets Under Construction - Clearing Account,Digital and Technology,Accenture (UK) Limited,3003648721,"512,080.37",788629066
Dept of Health,MHRA,21/02/2024,Assets Under Construction - Clearing Account,Digital and Technology,Accenture (UK) Limited,3003648730,"195,490.04",788629066
Dept of Health,MHRA,21/02/2024,Application Services and Maintenance,Digital and Technology,Trustmarque Solutions Limited,2378023,"56,359.44",394593601
Dept of Health,MHRA,26/02/2024,Assets Under Construction - Clearing Account,Digital and Technology,Accenture (UK) Limited,3003648982,"43,256.93",788629066
Dept of Health,MHRA,26/02/2024,Application Services and Maintenance,Digital and Technology,Accenture (UK) Limited,3003649004,"84,398.08",788629066
Dept of Health,MHRA,26/02/2024,Application Services and Maintenance,Digital and Technology,Accenture (UK) Limited,3003649009,"27,030.00",788629066
Dept of Health,MHRA,26/02/2024,Committee Costs Other,"Scientific, Research and Innovation",Charles River Microbial Solutions International Limited,46044272,"32,550.00",735349127
Dept of Health,MHRA,26/02/2024,Travel & Subsistence,Corporate,Clarity Travel Management,MHRA0094,"114,731.57",197694731
Dept of Health,MHRA,26/02/2024,IT Database Subscriptions,Safety and Surveillance,EMIS Health (Egton Medical Information Systems Limited),SINV00026902,"285,000.00",927149214
Dept of Health,MHRA,26/02/2024,Contracted Out Services Miscellaneous,Enablement,Health Unlimited Limited,170407526,"40,853.39",156008918
Dept of Health,MHRA,26/02/2024,Divisional Training (inc. T&S),Safety and Surveillance,London School of Hygiene and Tropical Medicine,54026487,"30,000.00",233756066
Dept of Health,MHRA,26/02/2024,Software & Licences,Digital and Technology,Softcat plc,INVUK1200343,"470,150.62",491848503
Dept of Health,MHRA,28/02/2024,Assets Under Construction - Clearing Account,Digital and Technology,Accenture (UK) Limited,3003645872,"99,539.21",788629066
Dept of Health,MHRA,28/02/2024,Application Services and Maintenance,Digital and Technology,Accenture (UK) Limited,3003649462,"39,933.28",788629066
Dept of Health,MHRA,28/02/2024,Assets Under Construction - Land & Buildings,Corporate,Classic gardens ltd,3526,"32,818.80",265999726
Dept of Health,MHRA,28/02/2024,Electricity,Corporate,EDF Energy,000018125627,"135,569.10",523041202
Dept of Health,MHRA,28/02/2024,Accommodation Rates,Corporate,Hertsmere Borough Council,Business Rates Bill: 2023/2024 January,"132,381.00",230640406
Dept of Health,MHRA,28/02/2024,IT Security,Digital and Technology,NTT Data UK Ltd,121582726,"26,126.40",159334590
Dept of Health,MHRA,28/02/2024,IT Security,Digital and Technology,NTT Data UK Ltd,121582727,"40,291.20",159334590
